fUSD/lending_fUSD_20250101
["ID","MTS","AMOUNT","RATE_DAILY","PERIOD"]
[347398532,1735763437983,-2158.53,0.00010958,2]
[347398533,1735763437992,-1823.02,0.00010958,2]
[347398534,1735763438001,-500.0,0.00010958,2]
[347398535,1735763438010,-431.62816439,0.00010958,2]
[347398537,1735763438019,-3525.81,0.00010958,2]
[347398539,1735763438028,-1282.68,0.00010958,2]
[347398541,1735763438038,-6795.87,0.00010958,2]
[347398543,1735763438047,-1372.71,0.00010958,2]
[347398544,1735763438058,-24281.02,0.00010958,2]
[347398545,1735763438067,-735.35,0.00010958,2]
[347398546,1735763438076,-738.99,0.00010958,2]
[347398547,1735763438085,-500.0,0.00010958,2]
[347398548,1735763438094,-1301.16,0.00010958,2]
[347398549,1735763438103,-829.87,0.00010958,2]
[347398550,1735763438112,-2878.94,0.00010958,2]
[347398551,1735763438121,-500.0,0.00010958,2]
[347398552,1735763438130,-500.0,0.00010958,2]
[347398553,1735763438139,-3627.85,0.00010958,2]
[347398554,1735763438148,-2093.17,0.00010958,2]
[347398555,1735763438157,-1864.1,0.00010958,2]
[347398556,1735763438166,-657.53,0.00010958,2]
[347398557,1735763438175,-1582.0,0.00010958,2]
[347398558,1735763438184,-1712.02,0.00010958,2]
[347398560,1735763438194,-500.0,0.00010958,2]
[347398562,1735763438202,-1382.61,0.00010958,2]
[347398564,1735763438211,-2026.37,0.00010958,2]
[347398566,1735763438220,-1436.65,0.00010958,2]
[347398568,1735763438230,-500.0,0.00010958,2]
[347398570,1735763438239,-610.59,0.00010958,2]
[347398571,1735763438248,-500.0,0.00010958,2]
[347398573,1735763438257,-1965.97,0.00010958,2]
[347398575,1735763438266,-12557.83,0.00010958,2]
[347398577,1735763438276,-1191.46,0.00010958,2]
[347398579,1735763438285,-500.0,0.00010958,2]
[347398581,1735763438294,-851.33,0.00010958,2]
[347398583,1735763438303,-500.0,0.00010958,2]
[347398585,1735763438313,-894.85,0.00010958,2]
[347398588,1735763438322,-1485.4,0.00010958,2]
[347398590,1735763438331,-6304.25,0.00010958,2]
[347398592,1735763438340,-852.31,0.00010958,2]
[347398594,1735763438349,-1401.37,0.00010958,2]
[347398596,1735763438358,-1005.72,0.00010958,2]
[347398598,1735763438367,-1727.87,0.00010958,2]
[347398600,1735763438376,-500.0,0.00010958,2]
[347398602,1735763438385,-3445.84,0.00010958,2]
[347398604,1735763438394,-1257.84,0.00010958,2]
[347398605,1735763438404,-2580.82,0.00010958,2]
[347398607,1735763438413,-1621.39,0.00010958,2]
[347398609,1735763438421,-3626.87,0.00010958,2]
[347398611,1735763438430,-953.99,0.00010958,2]
[347398613,1735763438441,-500.0,0.00010958,2]
[347398616,1735763438450,-500.0,0.00010958,2]
[347398617,1735763438460,-500.0,0.00010958,2]
[347398619,1735763438469,-761.71,0.00010958,2]
[347398621,1735763438479,-1365.19,0.00010958,2]
[347398623,1735763438489,-515.78,0.00010958,2]
[347398625,1735763438498,-520.39,0.00010958,2]
[347398627,1735763438507,-1670.18,0.00010958,2]
[347398629,1735763438516,-500.0,0.00010958,2]
[347398631,1735763438525,-500.0,0.00010958,2]
[347398633,1735763438535,-533.42,0.00010958,2]
[347398635,1735763438544,-500.0,0.00010958,2]
[347398637,1735763438553,-1290.96,0.00010958,2]
[347398639,1735763438562,-527.01,0.00010958,2]
[347398641,1735763438571,-899.51,0.00010958,2]
[347398643,1735763438581,-780.87,0.00010958,2]
[347398645,1735763438589,-500.0,0.00010958,2]
[347398647,1735763438599,-500.0,0.00010958,2]
[347398649,1735763438608,-1128.86,0.00010958,2]
[347398651,1735763438617,-1994.29,0.00010958,2]
[347398653,1735763438626,-500.0,0.00010958,2]
[347398655,1735763438635,-1364.45,0.00010958,2]
[347398657,1735763438644,-500.0,0.00010958,2]
[347398659,1735763438653,-1589.49,0.00010958,2]
[347398661,1735763438662,-500.0,0.00010958,2]
[347398663,1735763438673,-730.21,0.00010958,2]
[347398665,1735763438682,-2302.93,0.00010958,2]
[347398668,1735763438691,-1966.46,0.00010958,2]
[347398670,1735763438700,-1836.64,0.00010958,2]
[347398672,1735763438709,-598.95,0.00010958,2]
[347398673,1735763438719,-1692.69,0.00010958,2]
[347398675,1735763438728,-558.21,0.00010958,2]
[347398677,1735763438737,-1587.03,0.00010958,2]
[347398679,1735763438746,-3994.49,0.00010958,2]
[347398681,1735763438755,-1414.48,0.00010958,2]
[347398683,1735763438764,-3786.08,0.00010958,2]
[347398685,1735763438773,-1316.34,0.00010958,2]
[347398687,1735763438782,-951.49,0.00010958,2]
[347398689,1735763438791,-1176.51,0.00010958,2]
[347398691,1735763438799,-546.89,0.00010958,2]
[347398693,1735763438809,-2232.74,0.00010958,2]
[347398695,1735763438818,-6012.35,0.00010958,2]
[347398697,1735763438827,-500.0,0.00010958,2]
[347398699,1735763438836,-2583.12,0.00010958,2]
[347398701,1735763438845,-2370.14,0.00010958,2]
[347398703,1735763438854,-1305.35,0.00010958,2]
[347398705,1735763438863,-556.10155635,0.00010958,2]
[347398707,1735763438872,-500.0,0.00010958,2]
[347398709,1735763438881,-1469.04,0.00010958,2]
[347398711,1735763438891,-791.39,0.00010958,2]
[347398713,1735763438902,-699.97,0.00010958,2]
[347398715,1735763438911,-3203.89,0.00010958,2]
[347398717,1735763438920,-798.43,0.00010958,2]
[347398719,1735763438929,-990.68,0.00010958,2]
[347398721,1735763438939,-1132.29,0.00010958,2]
[347398723,1735763438949,-503.81,0.00010958,2]
[347398724,1735763438958,-1812.95,0.00010958,2]
[347398726,1735763438968,-500.0,0.00010958,2]
[347398728,1735763438977,-500.0,0.00010958,2]
[347398730,1735763438986,-12903.01,0.00010958,2]
[347398732,1735763438996,-659.78,0.00010958,2]
[347398734,1735763439005,-745.58,0.00010958,2]
[347398736,1735763439014,-500.0,0.00010958,2]
[347398738,1735763439023,-2174.69,0.00010958,2]
[347398740,1735763439032,-552.22,0.00010958,2]
[347398742,1735763439041,-187.88439238,0.00010958,2]
[347398744,1735763439050,-500.0,0.00010958,2]
[347398747,1735763439061,-500.0,0.00010958,2]
[347398748,1735763439070,-500.0,0.00010958,2]
[347398750,1735763439080,-1040.2,0.00010958,2]
[347398753,1735763439090,-4299.0,0.00010958,2]
[347398754,1735763439099,-1230.4,0.00010958,2]
[347398756,1735763439108,-2312.72,0.00010958,2]
[347398758,1735763439118,-1939.2,0.00010958,2]
[347398760,1735763439127,-4045.69,0.00010958,2]
[347398763,1735763439138,-1637.56,0.00010958,2]
[347398764,1735763439149,-1088.23,0.00010958,2]
[347398767,1735763439158,-500.0,0.00010958,2]
[347398769,1735763439168,-2256.99,0.00010958,2]
[347398771,1735763439177,-782.42,0.00010958,2]
[347398772,1735763439186,-1497.48,0.00010958,2]
[347398774,1735763439195,-500.0,0.00010958,2]
[347398777,1735763439205,-1068.92,0.00010958,2]
[347398779,1735763439214,-1608.47,0.00010958,2]
[347398780,1735763439223,-1945.36,0.00010958,2]
[347398782,1735763439233,-265.77707939,0.00010958,2]
[347398785,1735763439244,-645.28,0.00010958,2]
[347398786,1735763439255,-500.0,0.00010958,2]
[347398788,1735763439265,-500.0,0.00010958,2]
[347398790,1735763439275,-1694.53,0.00010958,2]
[347398792,1735763439285,-1925.54,0.00010958,2]
[347398794,1735763439294,-1056.17,0.00010958,2]
[347398796,1735763439303,-5034.85,0.00010958,2]
[347398798,1735763439312,-2224.04,0.00010958,2]
[347398800,1735763439321,-1431.26,0.00010958,2]
[347398802,1735763439331,-1075.81,0.00010958,2]
[347398804,1735763439340,-767.44,0.00010958,2]
[347398806,1735763439349,-1475.49,0.00010958,2]
[347398808,1735763439358,-500.0,0.00010958,2]
[347398810,1735763439367,-1849.3,0.00010958,2]
[347398812,1735763439376,-500.0,0.00010958,2]
[347398814,1735763439385,-2735.48,0.00010958,2]
[347398815,1735763439394,-500.0,0.00010958,2]
[347398817,1735763439403,-2313.84,0.00010958,2]
[347398819,1735763439413,-500.0,0.00010958,2]
[347398820,1735763439422,-2562.34,0.00010958,2]
[347398822,1735763439432,-2202.31,0.00010958,2]
[347398824,1735763439442,-500.0,0.00010958,2]
[347398826,1735763439451,-1202.66,0.00010958,2]
[347398827,1735763439460,-1614.31,0.00010958,2]
[347398829,1735763439470,-500.0,0.00010958,2]
[347398831,1735763439480,-993.13,0.00010958,2]
[347398833,1735763439489,-593.50798361,0.00010958,2]
[347398834,1735763439498,-1062.45,0.00010958,2]
[347398836,1735763439507,-580.14,0.00010958,2]
[347398838,1735763439516,-500.0,0.00010958,2]
[347398840,1735763439525,-1526.94,0.00010958,2]
[347398841,1735763439535,-1932.26,0.00010958,2]
[347398843,1735763439544,-3649.19,0.00010958,2]
[347398845,1735763439553,-500.0,0.00010958,2]
[347398847,1735763439562,-4273.41,0.00010958,2]
[347398848,1735763439571,-2419.55,0.00010958,2]
[347398850,1735763439581,-1231.22,0.00010958,2]
[347398853,1735763439590,-2229.0,0.00010958,2]
[347398855,1735763439599,-1223.86,0.00010958,2]
[347398857,1735763439609,-5260.6,0.00010958,2]
[347398858,1735763439618,-500.0,0.00010958,2]
[347398859,1735763439627,-1266.27,0.00010958,2]
[347398861,1735763439636,-2289.07,0.00010958,2]
[347398862,1735763439646,-1519.28,0.00010958,2]
[347398863,1735763439745,-500.0,0.00010958,2]
[347398864,1735763439754,-500.0,0.00010958,2]
[347398865,1735763439763,-500.0,0.00010958,2]
[347398866,1735763439773,-500.0,0.00010958,2]
[347398867,1735763439782,-715.9,0.00010958,2]
[347398868,1735763439791,-500.0,0.00010958,2]
[347398869,1735763439800,-1880.82,0.00010958,2]
[347398870,1735763439809,-10006.79,0.00010958,2]
[347398871,1735763439818,-3434.98,0.00010958,2]
[347398872,1735763439827,-1824.04,0.00010958,2]
[347398873,1735763439836,-4582.9,0.00010958,2]
[347398874,1735763439846,-500.0,0.00010958,2]
[347398875,1735763439855,-924.18,0.00010958,2]
[347398876,1735763439864,-1313.45,0.00010958,2]
[347398877,1735763439873,-500.0,0.00010958,2]
[347398878,1735763439882,-500.0,0.00010958,2]
[347398879,1735763439893,-718.75,0.00010958,2]
[347398880,1735763439904,-1788.48,0.00010958,2]
[347398881,1735763439913,-500.0,0.00010958,2]
[347398882,1735763439922,-7702.95,0.00010958,2]
[347398883,1735763439931,-525.72,0.00010958,2]
[347398884,1735763439942,-500.0,0.00010958,2]
[347398885,1735763439951,-3501.56,0.00010958,2]
[347398886,1735763439960,-500.0,0.00010958,2]
[347398887,1735763439969,-2050.36,0.00010958,2]
[347398888,1735763439978,-500.0,0.00010958,2]
[347398889,1735763439988,-4651.44,0.00010958,2]
[347398890,1735763439997,-2289.23,0.00010958,2]
[347398891,1735763440006,-500.0,0.00010958,2]
[347398892,1735763440015,-500.0,0.00010958,2]
[347398893,1735763440025,-500.0,0.00010958,2]
[347398894,1735763440035,-500.0,0.00010958,2]
[347398895,1735763440044,-605.5,0.00010958,2]
[347398896,1735763440054,-709.65,0.00010958,2]
[347398897,1735763440064,-500.0,0.00010958,2]
[347398898,1735763440073,-1226.84,0.00010958,2]
[347398899,1735763440082,-1574.88,0.00010958,2]
[347398901,1735763440091,-500.0,0.00010958,2]
[347398902,1735763440100,-1674.45,0.00010958,2]
[347398904,1735763440108,-13036.12,0.00010958,2]
[347398905,1735763440118,-1739.35,0.00010958,2]
[347398907,1735763440127,-645.6,0.00010958,2]
[347398909,1735763440137,-500.0,0.00010958,2]
[347398910,1735763440146,-1253.38,0.00010958,2]
[347398911,1735763440155,-1549.85,0.00010958,2]
[347398912,1735763440164,-723.94,0.00010958,2]
[347398913,1735763440172,-739.07,0.00010958,2]
[347398914,1735763440181,-3299.43,0.00010958,2]
[347398915,1735763440190,-1546.53,0.00010958,2]
[347398916,1735763440200,-566.68,0.00010958,2]
[347398917,1735763440209,-500.0,0.00010958,2]
[347398918,1735763440218,-1988.08,0.00010958,2]
[347398919,1735763440227,-1625.12,0.00010958,2]
[347398920,1735763440236,-500.0,0.00010958,2]
[347398921,1735763440245,-9866.5,0.00010958,2]
[347398922,1735763440254,-1400.91,0.00010958,2]
[347398923,1735763440262,-1766.75,0.00010958,2]
[347398924,1735763440271,-500.0,0.00010958,2]
[347398925,1735763440280,-3882.47,0.00010958,2]
[347398926,1735763440289,-2551.78,0.00010958,2]
[347398927,1735763440298,-1880.29,0.00010958,2]
[347398928,1735763440307,-803.2,0.00010958,2]
[347398929,1735763440316,-500.0,0.00010958,2]
[347398930,1735763440324,-2036.01,0.00010958,2]
[347398931,1735763440333,-1620.44,0.00010958,2]
[347398932,1735763440342,-926.9,0.00010958,2]
[347398933,1735763440351,-500.0,0.00010958,2]
[347398934,1735763440360,-500.0,0.00010958,2]
[347398935,1735763440370,-1801.11,0.00010958,2]
[347398936,1735763440379,-1129.55,0.00010958,2]
[347398937,1735763440388,-500.0,0.00010958,2]
[347398938,1735763440396,-570.81,0.00010958,2]
[347398939,1735763440405,-500.0,0.00010958,2]
[347398940,1735763440414,-500.0,0.00010973,2]
[347398941,1735763440423,-500.0,0.00010973,2]
[347398942,1735763440432,-150.0,0.00010999,2]
[347398943,1735763440441,-712.78,0.00010999,2]
[347398944,1735763440451,-784.0,0.00010999,2]
[347398945,1735763440460,-73483.58985332,0.00011,2]
[347398946,1735763440469,-340018.7031468,0.00011,2]
[347398947,1735763440999,-3112.21826223,0.00011,2]
[347398948,1735763441020,-1024.85967836,0.00011,2]
[347398949,1735763441030,-3401.62029999,0.00011,2]
[347398981,1735763443056,-252.90102083,0.000101,2]
[347398983,1735763443068,-971.75,0.000101,2]
[347398986,1735763443083,-303.64,0.000101,2]
[347398988,1735763443095,-8346.57603595,0.000101,2]
[347398990,1735763443104,-1172.0,0.00010902,2]
[347398992,1735763443114,-533.12095525,0.00010958,2]
[347398995,1735763443126,-1390.52904475,0.00010958,2]
[347398997,1735763443135,-500.0,0.00010958,2]
[347398999,1735763443144,-313.76653386,0.00010958,2]
[347399001,1735763443156,-186.23346614,0.00010958,2]
[347399003,1735763443165,-815.91053391,0.00011,2]
[347399006,1735763443183,-1304.0305234,0.00011,2]
[347399008,1735763443195,-12721.78810053,0.00011,2]
[347399014,1735763444026,-3355.59,0.00010958,2]
[347399015,1735763444036,-1241.88,0.00010958,2]
[347399016,1735763444045,-28708.8900903,0.00011,2]
[347399017,1735763444056,-9439.61,0.00011,2]
[347399018,1735763444067,-2242777.05723576,0.00011,2]
[347399019,1735763444083,-1736.2500075,0.00011,2]
[347399020,1735763444094,-3800.0,0.00011,2]
[347399021,1735763444106,-7855.35575124,0.00011,2]
[347399022,1735763444117,-2143.35793935,0.00011,2]
[347399023,1735763444129,-4939.77375769,0.00011,2]
[347399024,1735763444140,-377.908,0.00011,2]
[347399025,1735763445250,-388.5620595,0.00010858,2]
[347399026,1735763445261,-111.4379405,0.00010858,2]
[347399027,1735763445271,-636.0,0.00010902,2]
[347399028,1735763445279,-4096.3620595,0.00011,2]
[347399029,1735763445437,-284562.18376058,0.00011,2]
[347399030,1735763445450,-2101.24614265,0.00011,2]
[347399031,1735763445460,-296.7168,0.00011,2]
[347399032,1735763445513,-7256.58771616,0.00011,2]
[347399035,1735763446536,-703.56,0.00010958,2]
[347399036,1735763446548,-186.66697161,0.00010958,2]
[347399037,1735763446560,-379.03707406,0.00011,2]
[347399038,1735763446575,-9706.4,0.00011,2]
[347399039,1735763446614,-3997.75277715,0.00011,2]
[347399040,1735763446630,-1006.90972801,0.00011,2]
[347399041,1735763446644,-4908.924,0.00011,2]
[347399042,1735763446658,-41848.0110658,0.00011,2]
[347399043,1735763446672,-58167.99999518,0.00011,2]
[347399044,1735763446685,-463.177754,0.00011,2]
[347399045,1735763446700,-76454.20718732,0.00011,2]
[347399046,1735763446714,-105928.92131912,0.00011,2]
[347399047,1735763446729,-137754.71922557,0.00011,2]
[347399048,1735763446743,-18881.37983475,0.00011,2]
[347399049,1735763446756,-3968.90868184,0.00011,2]
[347399050,1735763446785,-16816.58389994,0.00011,2]
[347399051,1735763446799,-4748.3277,0.00011,2]
[347399052,1735763446813,-500.0,0.00011,2]
[347399054,1735763770303,500.0,0.00010958,7]
[347399055,1735763865414,612.24,8.26e-05,2]
[347399056,1735764397948,1392.12,9.605e-05,2]
[347399057,1735764564058,-1498.55132483,9.644e-05,2]
[347399058,1735764570657,-10000.0,9.644e-05,2]
[347399059,1735764578446,-10000.0,9.644e-05,2]
[347399060,1735764590807,-2401.44867517,9.644e-05,2]
[347399061,1735764590828,-250.0,9.644e-05,2]
[347399063,1735764631972,-250.0,9.784e-05,2]
[347399064,1735764631982,-255.43534519,9.825e-05,2]
[347399065,1735764632029,-44.56465481,9.825e-05,2]
[347399066,1735764632038,-442.30637519,9.826e-05,2]
[347399067,1735764632050,-1470.9993,9.826e-05,2]
[347399068,1735764632061,-4969.51767047,9.826e-05,2]
[347399069,1735764632088,-21496.12665434,9.826e-05,2]
[347399070,1735764632097,-150.0,9.888e-05,2]
[347399071,1735764632107,-150.0,9.888e-05,2]
[347399072,1735764632116,-200.0,9.939e-05,2]
[347399073,1735764632126,-5583.54158817,9.958e-05,2]
[347399074,1735764632136,-224.57,9.976e-05,2]
[347399075,1735764632146,-924.38,9.992e-05,2]
[347399076,1735764632155,-150.0,0.0001,2]
[347399077,1735764632165,-4936.42543689,0.0001,2]
[347399078,1735764632175,-1500.0,0.00010033,2]
[347399079,1735764632185,-1710.85,0.00010035,2]
[347399080,1735764632194,-1000.0,0.00010053,2]
[347399081,1735764632204,-679.9,0.0001011,2]
[347399082,1735764632213,-317.99,0.00010137,2]
[347399083,1735764632223,-250.0,0.00010149,2]
[347399084,1735764632232,-164.13,0.00010154,2]
[347399085,1735764632242,-166.51,0.00010373,2]
[347399086,1735764632251,-421.271,0.0001045,2]
[347399087,1735764632261,-612.24,0.00010524,2]
[347399088,1735764632270,-492.72,0.00010645,2]
[347399089,1735764632279,-385.6819,0.0001079,2]
[347399090,1735764632292,-3862.3307,0.00010801,2]
[347399091,1735764632302,-1392.12,0.00010805,2]
[347399092,1735764632311,-420.0,0.00010807,2]
[347399093,1735764632321,-3776.53082574,0.00010834,2]
[347399094,1735764632331,-19168.613496,0.00010835,2]
[347399095,1735764632340,-150.19776356,0.00010858,2]
[347399096,1735764632349,-27693.984,0.00010858,2]
[347399097,1735764632359,-1000.0,0.00010858,2]
[347399098,1735764632370,-4929.1298,0.00010858,2]
[347399099,1735764632379,-150.19776354,0.00010869,2]
[347399100,1735764632389,-8339.36040249,0.0001089,2]
[347399101,1735764632401,-443.85847269,0.0001089,2]
[347399102,1735764632414,-1561.440015,0.0001089,2]
[347399103,1735764632427,-3948.47980032,0.0001089,2]
[347399104,1735764632455,-1221.88380863,0.0001089,2]
[347399105,1735764632465,-2245.30217,0.0001089,2]
[347399106,1735764632474,-2013.0,0.00010902,2]
[347399107,1735764632483,-1267.72,0.00010902,2]
[347399109,1735764632492,-566.0,0.00010902,2]
[347399111,1735764632502,-634.0,0.00010902,2]
[347399113,1735764632511,-150.0,0.00010902,2]
[347399115,1735764632521,-1859.0,0.00010902,2]
[347399118,1735764632530,-3774.0,0.00010902,2]
[347399120,1735764632539,-1257.0,0.00010902,2]
[347399122,1735764632548,-915.072,0.00010902,2]
[347399124,1735764632557,-819.0,0.00010902,2]
[347399126,1735764632566,-942.393,0.00010902,2]
[347399128,1735764632575,-536.0,0.00010902,2]
[347399130,1735764632584,-3892.0,0.00010902,2]
[347399132,1735764632593,-150.0,0.00010902,2]
[347399134,1735764632602,-1172.0,0.00010902,2]
[347399136,1735764632611,-151.99,0.0001095,2]
[347399138,1735764632620,-150.02,0.0001095,2]
[347399140,1735764632629,-151.28,0.0001095,2]
[347399142,1735764632638,-527.07015604,0.00010958,2]
[347399144,1735764632647,-500.0,0.00010958,2]
[347399146,1735764632656,-500.0,0.00010958,2]
[347399148,1735764632665,-500.0,0.00010958,2]
[347399150,1735764632674,-1104.24,0.00010958,2]
[347399152,1735764632683,-500.0,0.00010958,2]
[347399154,1735764632693,-500.0,0.00010958,2]
[347399156,1735764632702,-500.0,0.00010958,2]
[347399158,1735764632711,-500.0,0.00010958,2]
[347399160,1735764632720,-592.62,0.00010958,2]
[347399162,1735764632729,-801.81,0.00010958,2]
[347399164,1735764632738,-698.66,0.00010958,2]
[347399166,1735764632747,-500.0,0.00010958,2]
[347399168,1735764632756,-500.0,0.00010958,2]
[347399170,1735764632766,-500.0,0.00010958,2]
[347399172,1735764632775,-500.0,0.00010958,2]
[347399174,1735764632786,-500.0,0.00010958,2]
[347399176,1735764632794,-500.0,0.00010958,2]
[347399178,1735764632803,-336.77392134,0.00010958,2]
[347399181,1735764632816,-163.22607866,0.00010958,2]
[347399183,1735764632826,-500.0,0.00010958,2]
[347399185,1735764632835,-545.48,0.00010958,2]
[347399187,1735764632845,-1272.86,0.00010958,2]
[347399189,1735764632855,-500.0,0.00010958,2]
[347399191,1735764632864,-500.0,0.00010958,2]
[347399193,1735764632873,-972.06,0.00010958,2]
[347399195,1735764632882,-253.74008436,0.00010958,2]
[347399197,1735764632892,-618.22,0.00010958,2]
[347399199,1735764632901,-528.18216296,0.00010958,2]
[347399201,1735764632911,-500.0,0.00010958,2]
[347399203,1735764632920,-500.0,0.00010958,2]
[347399205,1735764632929,-500.0,0.00010958,2]
[347399207,1735764632938,-1270.04,0.00010958,2]
[347399209,1735764632947,-500.0,0.00010958,2]
[347399211,1735764632957,-500.0,0.00010958,2]
[347399213,1735764632966,-500.0,0.00010958,2]
[347399215,1735764632975,-507.13,0.00010958,2]
[347399216,1735764632984,-500.0,0.00010958,2]
[347399218,1735764632994,-1815.12,0.00010958,2]
[347399221,1735764633003,-500.0,0.00010958,2]
[347399223,1735764633013,-1423.11,0.00010958,2]
[347399224,1735764633022,-551.34,0.00010958,2]
[347399226,1735764633031,-500.0,0.00010958,2]
[347399228,1735764633040,-500.0,0.00010958,2]
[347399230,1735764633049,-1420.42,0.00010958,2]
[347399232,1735764633060,-1726.06,0.00010958,2]
[347399234,1735764633070,-500.0,0.00010958,2]
[347399236,1735764633080,-500.0,0.00010958,2]
[347399238,1735764633089,-765.3,0.00010958,2]
[347399240,1735764633100,-500.0,0.00010958,2]
[347399242,1735764633110,-500.0,0.00010958,2]
[347399244,1735764633120,-548.35,0.00010958,2]
[347399246,1735764633130,-1142.0,0.00010958,2]
[347399248,1735764633140,-627.00903273,0.00010958,2]
[347399250,1735764633150,-1174.96,0.00010958,2]
[347399253,1735764633160,-500.0,0.00010958,2]
[347399255,1735764633170,-500.0,0.00010958,2]
[347399257,1735764633180,-500.0,0.00010958,2]
[347399258,1735764633190,-2042.45,0.00010958,2]
[347399260,1735764633199,-636.01,0.00010958,2]
[347399262,1735764633209,-681.59,0.00010958,2]
[347399264,1735764633218,-500.0,0.00010958,2]
[347399266,1735764633228,-500.0,0.00010958,2]
[347399268,1735764633237,-500.0,0.00010958,2]
[347399270,1735764633246,-1124.3,0.00010958,2]
[347399272,1735764633255,-802.3,0.00010958,2]
[347399274,1735764633265,-500.0,0.00010958,2]
[347399276,1735764633274,-849.5,0.00010958,2]
[347399278,1735764633286,-288.53397082,0.00010958,2]
[347399280,1735764633297,-527.79,0.00010958,2]
[347399282,1735764633308,-812.76,0.00010958,2]
[347399285,1735764633317,-573.92,0.00010958,2]
[347399286,1735764633328,-500.0,0.00010958,2]
[347399288,1735764633338,-752.0,0.00010958,2]
[347399291,1735764633347,-657.98,0.00010958,2]
[347399292,1735764633357,-860.4,0.00010958,2]
[347399294,1735764633367,-669.45,0.00010958,2]
[347399296,1735764633376,-500.0,0.00010958,2]
[347399299,1735764633386,-589.29,0.00010958,2]
[347399300,1735764633395,-500.0,0.00010958,2]
[347399302,1735764633406,-540.55826794,0.00010958,2]
[347399304,1735764633415,-367.56992809,0.00010958,2]
[347399309,1735764633452,-132.43007191,0.00010958,2]
[347399312,1735764633462,-500.0,0.00010958,2]
[347399314,1735764633471,-500.0,0.00010958,2]
[347399316,1735764633481,-500.0,0.00010958,2]
[347399317,1735764633490,-804.44992809,0.00010958,2]
[347399320,1735764633502,-2976.70007191,0.00010958,2]
[347399322,1735764633511,-284.90878072,0.00010958,2]
[347399324,1735764633520,-888.16,0.00010958,2]
[347399326,1735764633529,-500.0,0.00010958,2]
[347399328,1735764633539,-500.0,0.00010958,2]
[347399330,1735764633548,-500.0,0.00010958,2]
[347399332,1735764633557,-500.0,0.00010958,2]
[347399333,1735764633566,-663.06,0.00010958,2]
[347399334,1735764633575,-561.2,0.00010958,2]
[347399335,1735764633585,-500.0,0.00010958,2]
[347399336,1735764633594,-501.93484108,0.00010958,2]
[347399337,1735764633603,-1980.31,0.00010958,2]
[347399338,1735764633612,-500.0,0.00010958,2]
[347399339,1735764633621,-500.0,0.00010958,2]
[347399340,1735764633630,-500.0,0.00010958,2]
[347399341,1735764633640,-500.0,0.00010958,2]
[347399342,1735764633649,-500.0,0.00010958,2]
[347399343,1735764633658,-500.0,0.00010958,2]
[347399344,1735764633668,-500.0,0.00010958,2]
[347399345,1735764633677,-500.0,0.00010958,2]
[347399346,1735764633686,-3132.64,0.00010958,2]
[347399347,1735764633696,-500.0,0.00010958,2]
[347399348,1735764633707,-838.23,0.00010958,2]
[347399349,1735764633716,-500.0,0.00010958,2]
[347399350,1735764633726,-596.68,0.00010958,2]
[347399351,1735764633735,-645.75,0.00010958,2]
[347399352,1735764633745,-584.96,0.00010958,2]
[347399353,1735764633754,-500.0,0.00010958,2]
[347399354,1735764633763,-515.55,0.00010958,2]
[347399355,1735764633772,-500.0,0.00010958,2]
[347399356,1735764633781,-622.05,0.00010958,2]